[Event "Late-Titled-Tuesday-Blitz-January-23-2024"]
[Site "Chess.com"]
[Date "2024.01.23"]
[Round "1"]
[White "GMG"]
[Black "Noki102"]
[Result "1-0"]
[WhiteElo "2788"]
[BlackElo "2441"]
[TimeControl "180+1"]
[EndTime "14:07:41 PST"]
[Termination "GMG won on time"]

1. Nf3 {[%clk 0:02:59.7]} 1... d5 {[%clk 0:02:58.4]} 2. g3 {[%clk 0:02:59.7]}
2... Bg4 {[%clk 0:02:55.9]} 3. Bg2 {[%clk 0:02:59.5]} 3... e6 {[%clk 0:02:55.2]}
4. h3 {[%clk 0:02:59.8]} 4... Bxf3 {[%clk 0:02:54]} 5. Bxf3 {[%clk 0:03:00.7]}
5... Nd7 {[%clk 0:02:53.1]} 6. d4 {[%clk 0:03:00.6]} 6... Bd6 {[%clk 0:02:51.9]}
7. c4 {[%clk 0:03:00.6]} 7... c6 {[%clk 0:02:51.4]} 8. Qb3 {[%clk 0:02:53.2]}
8... Rb8 {[%clk 0:02:42.5]} 9. Nc3 {[%clk 0:02:49.6]} 9... Ne7 {[%clk
0:02:40.8]} 10. e4 {[%clk 0:02:48.8]} 10... O-O {[%clk 0:02:36.5]} 11. exd5
{[%clk 0:02:43.4]} 11... exd5 {[%clk 0:02:36]} 12. cxd5 {[%clk 0:02:43.2]} 12...
Nf5 {[%clk 0:02:15.1]} 13. Ne2 {[%clk 0:02:34.8]} 13... cxd5 {[%clk 0:01:47.8]}
14. Qxd5 {[%clk 0:02:32.1]} 14... Bb4+ {[%clk 0:01:43.5]} 15. Kf1 {[%clk
0:02:29.4]} 15... g6 {[%clk 0:01:27.9]} 16. Bf4 {[%clk 0:02:16.5]} 16... Rc8
{[%clk 0:01:19.1]} 17. Qxb7 {[%clk 0:02:15.5]} 17... Bd6 {[%clk 0:01:14.5]} 18.
Bxd6 {[%clk 0:02:06.9]} 18... Nxd6 {[%clk 0:01:15.4]} 19. Qxa7 {[%clk
0:02:06.7]} 19... Rc2 {[%clk 0:01:02.8]} 20. Kg2 {[%clk 0:02:06.5]} 20... Rxb2
{[%clk 0:01:02]} 21. Qa3 {[%clk 0:02:03.3]} 21... Qb8 {[%clk 0:01:00.8]} 22.
Rhc1 {[%clk 0:01:59.3]} 22... Re8 {[%clk 0:00:48.7]} 23. Qd3 {[%clk 0:01:58.8]}
23... Nf5 {[%clk 0:00:30.9]} 24. Rab1 {[%clk 0:01:45.2]} 24... Nf6 {[%clk
0:00:26.3]} 25. Rxb2 {[%clk 0:01:25.7]} 25... Qxb2 {[%clk 0:00:27.2]} 26. Rc2
{[%clk 0:01:21.5]} 26... Qa1 {[%clk 0:00:26.6]} 27. Qc3 {[%clk 0:01:18.1]} 27...
Qb1 {[%clk 0:00:21.4]} 28. Rb2 {[%clk 0:01:11.2]} 28... Qa1 {[%clk 0:00:20.4]}
29. d5 {[%clk 0:01:03.6]} 29... Kg7 {[%clk 0:00:19.8]} 30. Qc1 {[%clk
0:00:50.3]} 30... Qxc1 {[%clk 0:00:17.5]} 31. Nxc1 {[%clk 0:00:51.2]} 31... Nd4
{[%clk 0:00:16.7]} 32. Rd2 {[%clk 0:00:49.4]} 32... Nf5 {[%clk 0:00:09.5]} 33.
Nb3 {[%clk 0:00:47.2]} 33... Rd8 {[%clk 0:00:09.5]} 34. a4 {[%clk 0:00:46.5]}
34... Nd6 {[%clk 0:00:09.6]} 35. a5 {[%clk 0:00:44.9]} 35... Nd7 {[%clk
0:00:08.7]} 36. Rc2 {[%clk 0:00:36.4]} 36... Ra8 {[%clk 0:00:07.8]} 37. Rc6
{[%clk 0:00:33.7]} 37... Nb5 {[%clk 0:00:07.3]} 38. d6 {[%clk 0:00:26.7]} 38...
Ra7 {[%clk 0:00:07.8]} 39. Be2 {[%clk 0:00:20.9]} 39... Ne5 {[%clk 0:00:02.4]}
40. Bxb5 {[%clk 0:00:19.4]} 40... Nxc6 {[%clk 0:00:02]} 41. Bxc6 {[%clk
0:00:20.3]} 41... Kf6 {[%clk 0:00:01.7]} 42. d7 {[%clk 0:00:18.1]} 42... Ke7
{[%clk 0:00:02]} 43. Bb5 {[%clk 0:00:15.9]} 43... f5 {[%clk 0:00:02.2]} 44. a6
{[%clk 0:00:14.7]} 44... Ra8 {[%clk 0:00:01.2]} 45. Nd4 {[%clk 0:00:14.7]} 45...
Kd6 {[%clk 0:00:01.9]} 46. a7 {[%clk 0:00:13.1]} 46... Kc5 {[%clk 0:00:02.2]}
47. d8=Q {[%clk 0:00:12.1]} 1-0

[Event "Late-Titled-Tuesday-Blitz-January-23-2024"]
[Site "Chess.com"]
[Date "2024.01.23"]
[Round "1"]
[White "GMBenjaminBok"]
[Black "ErikRonka"]
[Result "1-0"]
[WhiteElo "2895"]
[BlackElo "2485"]
[TimeControl "180+1"]
[EndTime "14:07:44 PST"]
[Termination "GMBenjaminBok won on time"]

1. d4 {[%clk 0:01:56.5]} 1... d5 {[%clk 0:02:57.4]} 2. c4 {[%clk 0:01:55.3]}
2... c6 {[%clk 0:02:57.4]} 3. Nf3 {[%clk 0:01:55.4]} 3... Nf6 {[%clk 0:02:57.6]}
4. cxd5 {[%clk 0:01:56.1]} 4... cxd5 {[%clk 0:02:57.7]} 5. Nc3 {[%clk
0:01:56.8]} 5... Nc6 {[%clk 0:02:58]} 6. Bf4 {[%clk 0:01:57.4]} 6... a6 {[%clk
0:02:56.6]} 7. Rc1 {[%clk 0:01:57]} 7... Bf5 {[%clk 0:02:52.3]} 8. e3 {[%clk
0:01:56.8]} 8... e6 {[%clk 0:02:45.4]} 9. Qb3 {[%clk 0:01:55.6]} 9... Ra7 {[%clk
0:02:39.3]} 10. Be2 {[%clk 0:01:54.6]} 10... Be7 {[%clk 0:02:35.2]} 11. h3
{[%clk 0:01:53.2]} 11... h6 {[%clk 0:02:33.9]} 12. O-O {[%clk 0:01:53.1]} 12...
O-O {[%clk 0:02:34.4]} 13. Na4 {[%clk 0:01:40.2]} 13... Ne8 {[%clk 0:02:13.7]}
14. Nc5 {[%clk 0:01:37.8]} 14... Na5 {[%clk 0:01:59]} 15. Qc3 {[%clk 0:01:37.7]}
15... Nd6 {[%clk 0:01:53.5]} 16. Ne5 {[%clk 0:01:32.7]} 16... Ne4 {[%clk
0:01:39]} 17. Nxe4 {[%clk 0:01:28.4]} 17... Bxe4 {[%clk 0:01:39.9]} 18. Nxf7
{[%clk 0:01:06]} 18... Rxf7 {[%clk 0:01:29.9]} 19. Bc7 {[%clk 0:01:05.9]} 19...
Qf8 {[%clk 0:01:05]} 20. Bxa5 {[%clk 0:00:48.6]} 20... Bd6 {[%clk 0:00:55.3]}
21. f3 {[%clk 0:00:41]} 21... Bg6 {[%clk 0:00:54.2]} 22. Qc8 {[%clk 0:00:35.2]}
22... Kh7 {[%clk 0:00:45]} 23. Qxf8 {[%clk 0:00:34.7]} 23... Rxf8 {[%clk
0:00:45.9]} 24. Bc7 {[%clk 0:00:29.7]} 24... Be7 {[%clk 0:00:45.7]} 25. Be5
{[%clk 0:00:26.9]} 25... b5 {[%clk 0:00:38.8]} 26. Rc6 {[%clk 0:00:25.2]} 26...
Bf7 {[%clk 0:00:37.9]} 27. Rfc1 {[%clk 0:00:24.4]} 27... Rfa8 {[%clk 0:00:29.8]}
28. Bd3+ {[%clk 0:00:23.5]} 28... Kg8 {[%clk 0:00:29.9]} 29. Rc8+ {[%clk
0:00:23.5]} 29... Bf8 {[%clk 0:00:26.4]} 30. Kf2 {[%clk 0:00:19.8]} 30... Be8
{[%clk 0:00:23.4]} 31. R1c7 {[%clk 0:00:16.1]} 31... Rxc7 {[%clk 0:00:22]} 32.
Rxc7 {[%clk 0:00:13.9]} 32... a5 {[%clk 0:00:17.2]} 33. h4 {[%clk 0:00:14]}
33... b4 {[%clk 0:00:17.4]} 34. g4 {[%clk 0:00:13.6]} 34... a4 {[%clk
0:00:15.8]} 35. g5 {[%clk 0:00:09.4]} 35... hxg5 {[%clk 0:00:14.8]} 36. hxg5
{[%clk 0:00:10.3]} 36... a3 {[%clk 0:00:15.4]} 37. b3 {[%clk 0:00:09.7]} 37...
Ba4 {[%clk 0:00:11]} 38. bxa4 {[%clk 0:00:05.5]} 38... Rxa4 {[%clk 0:00:04]} 39.
Bc2 {[%clk 0:00:03.8]} 39... b3 {[%clk 0:00:04.5]} 40. Bxb3 {[%clk 0:00:03.7]}
40... Rb4 {[%clk 0:00:05.4]} 41. Ra7 {[%clk 0:00:03.4]} 41... Rb6 {[%clk
0:00:04.3]} 42. g6 {[%clk 0:00:03.3]} 42... Bb4 {[%clk 0:00:02.7]} 43. Ra8+
{[%clk 0:00:03.5]} 43... Bf8 {[%clk 0:00:03.1]} 44. e4 {[%clk 0:00:03.8]} 44...
Rb7 {[%clk 0:00:03.3]} 45. exd5 {[%clk 0:00:03.7]} 45... Re7 {[%clk 0:00:03.2]}
46. dxe6 {[%clk 0:00:03.9]} 1-0

[Event "Late-Titled-Tuesday-Blitz-January-23-2024"]
[Site "Chess.com"]
[Date "2024.01.23"]
[Round "1"]
[White "RaugintaBulba"]
[Black "KNVB"]
[Result "0-1"]
[WhiteElo "2426"]
[BlackElo "2747"]
[TimeControl "180+1"]
[EndTime "14:07:47 PST"]
[Termination "KNVB won on time"]

1. d4 {[%clk 0:03:00.9]} 1... Nf6 {[%clk 0:02:59.7]} 2. c4 {[%clk 0:03:01.4]}
2... e6 {[%clk 0:02:59]} 3. Nf3 {[%clk 0:03:00.7]} 3... b6 {[%clk 0:02:59.1]} 4.
a3 {[%clk 0:02:58.4]} 4... Bb7 {[%clk 0:02:55]} 5. Nc3 {[%clk 0:02:57.2]} 5...
Ne4 {[%clk 0:02:48.4]} 6. Nxe4 {[%clk 0:02:53.6]} 6... Bxe4 {[%clk 0:02:49.3]}
7. e3 {[%clk 0:02:51.9]} 7... g6 {[%clk 0:02:35.1]} 8. Bd3 {[%clk 0:02:51.1]}
8... Bb7 {[%clk 0:02:35]} 9. O-O {[%clk 0:02:50.9]} 9... Bg7 {[%clk 0:02:35.6]}
10. b4 {[%clk 0:02:51.4]} 10... O-O {[%clk 0:02:35.8]} 11. Bb2 {[%clk
0:02:51.3]} 11... d6 {[%clk 0:02:36.4]} 12. Qe2 {[%clk 0:02:48.7]} 12... Nd7
{[%clk 0:02:32.4]} 13. Rfd1 {[%clk 0:02:47.8]} 13... a5 {[%clk 0:02:27.3]} 14.
e4 {[%clk 0:02:23.6]} 14... Qe7 {[%clk 0:02:21.1]} 15. Re1 {[%clk 0:02:14.9]}
15... h6 {[%clk 0:02:13.9]} 16. h3 {[%clk 0:02:10.2]} 16... Rfe8 {[%clk
0:02:10.1]} 17. Qc2 {[%clk 0:02:06]} 17... Qf8 {[%clk 0:01:48.8]} 18. d5 {[%clk
0:01:58.7]} 18... Bxb2 {[%clk 0:01:41.8]} 19. Qxb2 {[%clk 0:01:56.4]} 19... e5
{[%clk 0:01:42.7]} 20. Rec1 {[%clk 0:01:46.5]} 20... Ba6 {[%clk 0:01:00.9]} 21.
Qc3 {[%clk 0:01:26.7]} 21... f5 {[%clk 0:00:42.4]} 22. bxa5 {[%clk 0:01:24]}
22... Nc5 {[%clk 0:00:41.5]} 23. Nd2 {[%clk 0:01:16.9]} 23... bxa5 {[%clk
0:00:38.3]} 24. Bf1 {[%clk 0:01:04.5]} 24... Bc8 {[%clk 0:00:32.5]} 25. f3
{[%clk 0:00:47.2]} 25... Bd7 {[%clk 0:00:03.7]} 26. Nb3 {[%clk 0:00:39.1]} 26...
fxe4 {[%clk 0:00:03.9]} 27. Nxc5 {[%clk 0:00:38.8]} 27... dxc5 {[%clk
0:00:04.8]} 28. fxe4 {[%clk 0:00:39.4]} 28... Qd6 {[%clk 0:00:05]} 29. Rcb1
{[%clk 0:00:32.6]} 29... Kg7 {[%clk 0:00:05]} 30. Rb7 {[%clk 0:00:32.1]} 30...
Bc8 {[%clk 0:00:05.4]} 31. Rb5 {[%clk 0:00:31]} 31... a4 {[%clk 0:00:03.1]} 32.
Qe3 {[%clk 0:00:27.9]} 32... Bd7 {[%clk 0:00:02.3]} 33. Rb7 {[%clk 0:00:17.6]}
33... Rf8 {[%clk 0:00:02.3]} 34. Rab1 {[%clk 0:00:17.2]} 34... Rf7 {[%clk
0:00:02.7]} 35. Rb8 {[%clk 0:00:10.2]} 35... Rxb8 {[%clk 0:00:03.1]} 36. Rxb8
{[%clk 0:00:10.9]} 36... Rf8 {[%clk 0:00:04]} 37. Rb7 {[%clk 0:00:07.1]} 37...
Rf7 {[%clk 0:00:04.5]} 38. Qc3 {[%clk 0:00:06.8]} 38... g5 {[%clk 0:00:04.7]}
39. Qa5 {[%clk 0:00:06.8]} 39... Be8 {[%clk 0:00:03.9]} 40. Rb5 {[%clk 0:00:04]}
40... g4 {[%clk 0:00:03.3]} 41. Rxc5 {[%clk 0:00:03.9]} 41... gxh3 {[%clk
0:00:02.7]} 42. gxh3 {[%clk 0:00:02.6]} 42... Qg6+ {[%clk 0:00:03.1]} 43. Bg2
{[%clk 0:00:03.1]} 43... Bd7 {[%clk 0:00:02.9]} 44. Qc3 {[%clk 0:00:02.7]} 44...
Qb6 {[%clk 0:00:03.6]} 45. Qe3 {[%clk 0:00:01.9]} 45... Rf6 {[%clk 0:00:02.1]}
46. Kh2 {[%clk 0:00:02]} 46... Rg6 {[%clk 0:00:02.3]} 0-1

[Event "Late-Titled-Tuesday-Blitz-January-23-2024"]
[Site "Chess.com"]
[Date "2024.01.23"]
[Round "1"]
[White "OparinGrigoriy"]
[Black "FREZZY23"]
[Result "1-0"]
[WhiteElo "3013"]
[BlackElo "2515"]
[TimeControl "180+1"]
[EndTime "14:07:52 PST"]
[Termination "OparinGrigoriy won by resignation"]

1. Nc3 {[%clk 0:03:00.9]} 1... Nf6 {[%clk 0:02:57.7]} 2. e4 {[%clk 0:03:01.5]}
2... e5 {[%clk 0:02:56.3]} 3. Bc4 {[%clk 0:03:02]} 3... Bc5 {[%clk 0:02:54.6]}
4. d3 {[%clk 0:03:01.9]} 4... Nc6 {[%clk 0:02:54]} 5. f4 {[%clk 0:02:58.9]} 5...
d6 {[%clk 0:02:52.8]} 6. Nf3 {[%clk 0:02:54.6]} 6... Bg4 {[%clk 0:02:49.8]} 7.
Na4 {[%clk 0:02:53]} 7... Bb4+ {[%clk 0:02:40.5]} 8. c3 {[%clk 0:02:52.6]} 8...
Ba5 {[%clk 0:02:38.7]} 9. b4 {[%clk 0:02:52.7]} 9... Bb6 {[%clk 0:02:34.7]} 10.
h3 {[%clk 0:02:53.3]} 10... Be6 {[%clk 0:02:32.6]} 11. Bxe6 {[%clk 0:02:49.2]}
11... fxe6 {[%clk 0:02:32.3]} 12. fxe5 {[%clk 0:02:49.4]} 12... Nxe5 {[%clk
0:02:32.1]} 13. Nxe5 {[%clk 0:02:46.9]} 13... dxe5 {[%clk 0:02:30.6]} 14. Nxb6
{[%clk 0:02:42.4]} 14... axb6 {[%clk 0:02:28.6]} 15. O-O {[%clk 0:02:43.3]}
15... Qd6 {[%clk 0:02:25.2]} 16. Rf3 {[%clk 0:02:39.6]} 16... O-O {[%clk
0:02:15.9]} 17. Qe2 {[%clk 0:02:36.8]} 17... b5 {[%clk 0:02:09.1]} 18. Bg5
{[%clk 0:02:33.8]} 18... c5 {[%clk 0:02:07.7]} 19. Bxf6 {[%clk 0:02:30.8]} 19...
Rxf6 {[%clk 0:02:06.7]} 20. Rxf6 {[%clk 0:02:31.2]} 20... gxf6 {[%clk
0:02:07.6]} 21. Rf1 {[%clk 0:02:31.5]} 21... Rf8 {[%clk 0:02:07]} 22. a3 {[%clk
0:02:29.7]} 22... f5 {[%clk 0:01:54.8]} 23. Kh1 {[%clk 0:02:27.8]} 23... f4
{[%clk 0:01:52.8]} 24. g3 {[%clk 0:02:16.9]} 24... fxg3 {[%clk 0:01:51.2]} 25.
Rf3 {[%clk 0:02:02.2]} 25... Rxf3 {[%clk 0:01:37.7]} 26. Qxf3 {[%clk 0:02:03.1]}
26... cxb4 {[%clk 0:01:37.9]} 27. Qxg3+ {[%clk 0:02:02.6]} 27... Kf8 {[%clk
0:01:35.8]} 28. axb4 {[%clk 0:02:02.6]} 28... Qc7 {[%clk 0:01:35.9]} 29. Qf2+
{[%clk 0:02:00.7]} 29... Ke7 {[%clk 0:01:17.6]} 30. Qh4+ {[%clk 0:01:56.2]}
30... Kd6 {[%clk 0:01:13.5]} 31. Qf6 {[%clk 0:01:48]} 31... b6 {[%clk
0:01:01.6]} 32. Kg2 {[%clk 0:01:40.9]} 32... Qd7 {[%clk 0:00:56.7]} 33. Kf3
{[%clk 0:01:34.1]} 33... Kc6 {[%clk 0:00:51.2]} 34. Ke3 {[%clk 0:01:34.1]} 34...
Kd6 {[%clk 0:00:46.7]} 35. h4 {[%clk 0:01:33.6]} 35... Qc7 {[%clk 0:00:44.5]}
36. h5 {[%clk 0:01:30.4]} 36... Qc8 {[%clk 0:00:36.1]} 37. h6 {[%clk 0:01:25.9]}
37... Qc7 {[%clk 0:00:35.6]} 38. Qg7 {[%clk 0:01:24.8]} 38... Qxc3 {[%clk
0:00:33.7]} 39. Qf8+ {[%clk 0:01:18]} 39... Kc7 {[%clk 0:00:27.3]} 40. Qe7+
{[%clk 0:01:13.2]} 40... Kb8 {[%clk 0:00:27.1]} 41. Qd6+ {[%clk 0:01:10.8]}
41... Ka7 {[%clk 0:00:26.6]} 42. Kf3 {[%clk 0:01:10.9]} 42... Qd2 {[%clk
0:00:17.7]} 43. Qxe5 {[%clk 0:00:58.3]} 43... Qxd3+ {[%clk 0:00:17.3]} 44. Kg4
{[%clk 0:00:52.1]} 44... Qe2+ {[%clk 0:00:15.6]} 45. Kg5 {[%clk 0:00:46.2]}
45... Qd2+ {[%clk 0:00:15.3]} 46. Qf4 {[%clk 0:00:43.5]} 46... Qxb4 {[%clk
0:00:15.3]} 47. Qf7+ {[%clk 0:00:42.8]} 47... Ka6 {[%clk 0:00:15.4]} 48. Qxh7
{[%clk 0:00:43.3]} 48... Qd2+ {[%clk 0:00:14.9]} 49. Kf6 {[%clk 0:00:39.6]}
49... b4 {[%clk 0:00:14.9]} 50. Qg8 {[%clk 0:00:34]} 50... b3 {[%clk 0:00:14.8]}
51. h7 {[%clk 0:00:32.1]} 51... Qf4+ {[%clk 0:00:14]} 52. Ke7 {[%clk 0:00:30.9]}
52... Qc7+ {[%clk 0:00:13.6]} 53. Kxe6 {[%clk 0:00:29.6]} 53... Qc4+ {[%clk
0:00:13.8]} 54. Kf5 {[%clk 0:00:29.6]} 54... Qf1+ {[%clk 0:00:13.6]} 55. Ke5
{[%clk 0:00:25.7]} 55... b2 {[%clk 0:00:12.5]} 56. Qa8+ {[%clk 0:00:21.3]} 56...
Kb5 {[%clk 0:00:12.2]} 57. Qd5+ {[%clk 0:00:22.2]} 57... Ka6 {[%clk 0:00:11.9]}
58. h8=Q {[%clk 0:00:22.3]} 1-0

[Event "Late-Titled-Tuesday-Blitz-January-23-2024"]
[Site "Chess.com"]
[Date "2024.01.23"]
[Round "1"]
[White "Bigfish1995"]
[Black "Perecke"]
[Result "1-0"]
[WhiteElo "3143"]
[BlackElo "2541"]
[TimeControl "180+1"]
[EndTime "14:07:53 PST"]
[Termination "Bigfish1995 won by resignation"]

1. e4 {[%clk 0:03:00.9]} 1... e5 {[%clk 0:01:59.7]} 2. Nf3 {[%clk 0:03:00.7]}
2... Nc6 {[%clk 0:01:58.6]} 3. Bb5 {[%clk 0:03:01.2]} 3... a6 {[%clk 0:01:58.9]}
4. Ba4 {[%clk 0:03:00.8]} 4... Nf6 {[%clk 0:01:59.3]} 5. O-O {[%clk 0:03:01]}
5... Be7 {[%clk 0:01:59.3]} 6. Bxc6 {[%clk 0:02:59.9]} 6... dxc6 {[%clk
0:01:58.8]} 7. Re1 {[%clk 0:03:00.5]} 7... Bg4 {[%clk 0:01:42.5]} 8. h3 {[%clk
0:03:00.3]} 8... Bxf3 {[%clk 0:01:43.1]} 9. Qxf3 {[%clk 0:02:59.4]} 9... O-O
{[%clk 0:01:44]} 10. d3 {[%clk 0:02:55.6]} 10... Nd7 {[%clk 0:01:39.3]} 11. Qg4
{[%clk 0:02:48.3]} 11... Nc5 {[%clk 0:01:33.1]} 12. Nd2 {[%clk 0:02:47.7]} 12...
Ne6 {[%clk 0:01:31.9]} 13. Nf3 {[%clk 0:02:42.5]} 13... Qd6 {[%clk 0:01:20.7]}
14. Be3 {[%clk 0:02:41.1]} 14... c5 {[%clk 0:01:20.9]} 15. c3 {[%clk 0:02:31.1]}
15... Rfd8 {[%clk 0:01:09]} 16. Rad1 {[%clk 0:02:31.5]} 16... Bf6 {[%clk
0:01:07.3]} 17. h4 {[%clk 0:02:31.7]} 17... g6 {[%clk 0:01:01.1]} 18. h5 {[%clk
0:02:23.1]} 18... Qb6 {[%clk 0:01:01]} 19. Rd2 {[%clk 0:02:19.2]} 19... Rd7
{[%clk 0:00:56.3]} 20. Red1 {[%clk 0:02:05.4]} 20... Rad8 {[%clk 0:00:55.6]} 21.
b4 {[%clk 0:01:53.2]} 21... Qb5 {[%clk 0:00:53.7]} 22. a4 {[%clk 0:01:24.1]}
22... Qxa4 {[%clk 0:00:50.8]} 23. bxc5 {[%clk 0:01:24.5]} 23... Qb5 {[%clk
0:00:42.1]} 24. d4 {[%clk 0:01:23.7]} 24... Qb3 {[%clk 0:00:21.8]} 25. d5 {[%clk
0:01:20.3]} 25... Nf4 {[%clk 0:00:16.6]} 26. Bxf4 {[%clk 0:01:13.9]} 26... exf4
{[%clk 0:00:17.5]} 27. e5 {[%clk 0:01:13.3]} 27... Bg7 {[%clk 0:00:15.5]} 28.
hxg6 {[%clk 0:01:04.4]} 28... hxg6 {[%clk 0:00:10.1]} 29. e6 {[%clk 0:01:03.1]}
29... Rxd5 {[%clk 0:00:10.4]} 30. e7 {[%clk 0:00:54.4]} 30... Qxd1+ {[%clk
0:00:08.7]} 31. Rxd1 {[%clk 0:00:48.5]} 31... Rxd1+ {[%clk 0:00:09.6]} 32. Kh2
{[%clk 0:00:49.1]} 32... Re8 {[%clk 0:00:10.2]} 33. Qh4 {[%clk 0:00:35.6]} 33...
f6 {[%clk 0:00:02.1]} 34. c6 {[%clk 0:00:33.9]} 34... bxc6 {[%clk 0:00:01.4]}
35. Qxf4 {[%clk 0:00:33.2]} 35... Rxe7 {[%clk 0:00:01.8]} 36. Qc4+ {[%clk
0:00:33.9]} 36... Rf7 {[%clk 0:00:01.3]} 37. Qxa6 {[%clk 0:00:34]} 37... Rd6
{[%clk 0:00:01.4]} 38. Nd4 {[%clk 0:00:32.2]} 38... Kh7 {[%clk 0:00:01.7]} 39.
Qc4 {[%clk 0:00:30.5]} 39... Re7 {[%clk 0:00:01.6]} 40. Nxc6 {[%clk 0:00:30.9]}
40... Ree6 {[%clk 0:00:01.6]} 41. Nd4 {[%clk 0:00:30.8]} 41... Re7 {[%clk
0:00:02]} 42. Qc5 {[%clk 0:00:30.1]} 42... f5 {[%clk 0:00:02.2]} 43. Nb5 {[%clk
0:00:29.3]} 43... Re5 {[%clk 0:00:02.6]} 44. Qxc7 {[%clk 0:00:27.3]} 44... Rdd5
{[%clk 0:00:02.7]} 45. Nd4 {[%clk 0:00:24.5]} 45... Re4 {[%clk 0:00:02.5]} 46.
g3 {[%clk 0:00:24.3]} 46... f4 {[%clk 0:00:02.1]} 47. gxf4 {[%clk 0:00:23.9]}
47... Rh5+ {[%clk 0:00:02.5]} 48. Kg3 {[%clk 0:00:24.1]} 48... Re1 {[%clk
0:00:03.3]} 49. Nf3 {[%clk 0:00:22.8]} 49... Rc1 {[%clk 0:00:02.9]} 50. c4
{[%clk 0:00:22.6]} 50... Rc3 {[%clk 0:00:03]} 51. Kg4 {[%clk 0:00:21.9]} 51...
Ra5 {[%clk 0:00:02.9]} 52. Ng5+ {[%clk 0:00:20.8]} 52... Kh6 {[%clk 0:00:03.5]}
53. Ne6 {[%clk 0:00:20.9]} 53... Bf6 {[%clk 0:00:03.1]} 54. Qxa5 {[%clk
0:00:21.1]} 1-0

[Event "Late-Titled-Tuesday-Blitz-January-23-2024"]
[Site "Chess.com"]
[Date "2024.01.23"]
[Round "1"]
[White "Franmu14"]
[Black "PapaieDudu"]
[Result "0-1"]
[WhiteElo "2714"]
[BlackElo "2425"]
[TimeControl "180+1"]
[EndTime "14:07:53 PST"]
[Termination "PapaieDudu won by resignation"]

1. e4 {[%clk 0:03:00.9]} 1... c5 {[%clk 0:02:46]} 2. Nc3 {[%clk 0:03:01.8]} 2...
a6 {[%clk 0:02:44.6]} 3. d4 {[%clk 0:03:01.7]} 3... cxd4 {[%clk 0:02:45.5]} 4.
Qxd4 {[%clk 0:03:02.1]} 4... Nc6 {[%clk 0:02:44.4]} 5. Qe3 {[%clk 0:03:02.7]}
5... d6 {[%clk 0:02:41.5]} 6. b3 {[%clk 0:03:03.3]} 6... Nf6 {[%clk 0:02:41.6]}
7. Bb2 {[%clk 0:03:03.1]} 7... e5 {[%clk 0:02:36.3]} 8. O-O-O {[%clk 0:03:01.9]}
8... Be7 {[%clk 0:02:36.4]} 9. Kb1 {[%clk 0:03:02.1]} 9... O-O {[%clk
0:02:35.7]} 10. h3 {[%clk 0:02:39.7]} 10... b5 {[%clk 0:02:33]} 11. Nge2 {[%clk
0:02:39.9]} 11... Bb7 {[%clk 0:02:26.8]} 12. g4 {[%clk 0:02:36.9]} 12... Qa5
{[%clk 0:02:18.3]} 13. f4 {[%clk 0:02:32.8]} 13... b4 {[%clk 0:02:13.2]} 14. Nd5
{[%clk 0:02:24.4]} 14... Nxd5 {[%clk 0:02:04.9]} 15. exd5 {[%clk 0:02:25.3]}
15... exf4 {[%clk 0:02:00.6]} 16. Nxf4 {[%clk 0:02:24.6]} 16... Ne5 {[%clk
0:01:56.1]} 17. Bg2 {[%clk 0:02:15.9]} 17... Rfe8 {[%clk 0:01:54.5]} 18. Nh5
{[%clk 0:02:11.2]} 18... Rac8 {[%clk 0:01:45.3]} 19. Be4 {[%clk 0:01:59.8]}
19... Rc3 {[%clk 0:01:33.6]} 20. Bxc3 {[%clk 0:01:41.2]} 20... bxc3 {[%clk
0:01:33.8]} 21. Qc1 {[%clk 0:01:41.8]} 21... Nc4 {[%clk 0:01:25.1]} 22. h4
{[%clk 0:01:25.3]} 22... Nd2+ {[%clk 0:00:46.4]} 23. Rxd2 {[%clk 0:00:53.9]}
23... cxd2 {[%clk 0:00:46.5]} 24. Qf1 {[%clk 0:00:50.1]} 24... g6 {[%clk
0:00:43]} 25. Qf3 {[%clk 0:00:32.3]} 25... Rc8 {[%clk 0:00:07.9]} 26. Rf1 {[%clk
0:00:23.6]} 26... d1=Q+ {[%clk 0:00:06.9]} 27. Rxd1 {[%clk 0:00:17.3]} 27...
gxh5 {[%clk 0:00:06.3]} 28. Rf1 {[%clk 0:00:17.5]} 28... f6 {[%clk 0:00:03.3]}
29. gxh5 {[%clk 0:00:15.3]} 29... Kf8 {[%clk 0:00:03.2]} 30. Qf4 {[%clk
0:00:10.8]} 30... Bxd5 {[%clk 0:00:02.6]} 31. Qh6+ {[%clk 0:00:10.8]} 31... Ke8
{[%clk 0:00:03.2]} 32. Qxh7 {[%clk 0:00:09.5]} 32... Be6 {[%clk 0:00:02.8]} 33.
Bd3 {[%clk 0:00:06.9]} 33... Qe5 {[%clk 0:00:03]} 34. Qg6+ {[%clk 0:00:07.1]}
34... Kd7 {[%clk 0:00:03.3]} 35. h6 {[%clk 0:00:07.7]} 35... f5 {[%clk 0:00:03]}
36. h7 {[%clk 0:00:07.6]} 36... Bf6 {[%clk 0:00:03]} 37. c3 {[%clk 0:00:02.8]}
37... Qxc3 {[%clk 0:00:03.3]} 38. Qxf6 {[%clk 0:00:03.4]} 38... Qxf6 {[%clk
0:00:04.2]} 39. Rd1 {[%clk 0:00:02.8]} 39... Rh8 {[%clk 0:00:04.4]} 40. Bb5+
{[%clk 0:00:03.7]} 40... Ke7 {[%clk 0:00:04.8]} 41. Bc4 {[%clk 0:00:03.7]} 41...
Rxh7 {[%clk 0:00:05.4]} 42. Re1 {[%clk 0:00:04.6]} 42... Qe5 {[%clk 0:00:05.6]}
43. Rxe5 {[%clk 0:00:04.4]} 43... dxe5 {[%clk 0:00:06.5]} 44. Bxa6 {[%clk
0:00:05]} 44... Rxh4 {[%clk 0:00:07]} 45. Bd3 {[%clk 0:00:05.6]} 45... Rf4
{[%clk 0:00:07.7]} 46. Kc2 {[%clk 0:00:05.7]} 46... Kf6 {[%clk 0:00:08.5]} 47.
Bb5 {[%clk 0:00:06.6]} 47... e4 {[%clk 0:00:09.3]} 48. a4 {[%clk 0:00:07.5]}
48... Ke5 {[%clk 0:00:09.8]} 49. a5 {[%clk 0:00:08.4]} 49... Kd4 {[%clk
0:00:10.4]} 50. a6 {[%clk 0:00:09]} 50... Bd5 {[%clk 0:00:11]} 51. Bc4 {[%clk
0:00:08.9]} 51... Rf2+ {[%clk 0:00:11.6]} 52. Kd1 {[%clk 0:00:08.2]} 52... Bxc4
{[%clk 0:00:12.1]} 53. a7 {[%clk 0:00:08.7]} 53... Ra2 {[%clk 0:00:12.2]} 0-1